bitfinex/quotes_SOLUSD_20250206
["timestamp","ask_amount","ask_price","bid_price","bid_amount"]
[1738839203951,69.75261388,201.48,201.47,0.0001]
[1738839206069,54.9932,201.48,201.47,0.0001]
[1738839207562,55.08402533,201.48,201.47,0.0001]
[1738839208760,69.84343921,201.48,201.47,0.0001]
[1738839211067,31.37637,201.45,201.44,0.0001]
[1738839211253,30.0,201.37,201.36,0.063]
[1738839211453,44.75941388,201.37,201.36,0.063]
[1738839211861,46.74908088,201.37,201.36,0.063]
[1738839213050,51.71498088,201.37,201.36,0.063]
[1738839213250,31.989667,201.37,201.36,0.063]
[1738839213573,30.0,201.37,201.36,0.063]
[1738839219271,44.75941388,201.4,201.36,0.063]
[1738839219467,30.0,201.4,201.36,0.063]
[1738839224469,14.75941388,201.41,201.36,0.063]
[1738839224775,122.12431388,201.42,201.36,0.063]
[1738839225071,30.0,201.4,201.36,0.063]
[1738839225270,44.75941388,201.4,201.36,0.063]
[1738839225650,30.0,201.4,201.36,0.063]
[1738839227572,0.09191195,201.37,201.36,0.063]
[1738839231374,0.09191195,201.37,201.36,14.82241388]
[1738839232583,0.09191195,201.37,201.36,0.063]
[1738839234072,0.09191195,201.37,201.36,14.82241388]
[1738839236784,0.09191195,201.37,201.36,9.53908486]
[1738839241386,0.09191195,201.37,201.36,0.063]
[1738839241591,39.56799681,201.37,201.36,0.063]
[1738839241778,44.53389681,201.37,201.36,0.063]
[1738839244096,35.05781195,201.37,201.36,0.063]
[1738839244288,30.09191195,201.37,201.36,0.063]
[1738839246395,39.56799681,201.37,201.36,0.063]
[1738839247591,39.65853744,201.37,201.36,0.063]
[1738839248307,39.56662549,201.37,201.36,0.063]
[1738839248880,30.09054063,201.37,201.36,0.063]
[1738839249079,0.09054063,201.37,201.36,0.063]
[1738839249604,30.09054063,201.37,201.36,0.063]
[1738839252697,0.09054063,201.37,201.36,9.53908486]
[1738839253199,0.09054063,201.37,201.36,22.95093339]
[1738839253598,0.09054063,201.37,201.36,27.91713339]
[1738839255074,0.09054063,201.37,201.36,37.0937901]
[1738839256100,0.09054063,201.37,201.36,37.2192801]
[1738839257216,0.09054063,201.37,201.36,37.0937901]
[1738839257505,0.09054063,201.37,201.36,36.34900339]
[1738839264237,0.10175513,201.38,201.37,13.78831853]
[1738839264420,0.10175513,201.38,201.37,28.23030339]
[1738839267613,0.19990413,201.38,201.37,28.23030339]
[1738839268097,0.19990413,201.38,201.37,28.97500046]
[1738839268394,0.098149,201.38,201.37,28.97500046]
[1738839272114,0.098149,201.38,201.37,28.23030339]
[1738839272615,0.098149,201.38,201.37,27.85383339]
[1738839272919,0.098149,201.38,201.37,18.37774853]
[1738839273825,0.098149,201.38,201.36,9.53908486]
[1738839273996,0.098149,201.38,201.36,0.063]
[1738839274326,30.0,201.37,201.36,0.063]
[1738839278020,0.098149,201.38,201.36,9.53908486]
[1738839278332,0.098149,201.38,201.37,22.88793339]
[1738839278836,0.098149,201.38,201.37,24.00915763]
[1738839279717,0.098149,201.38,201.37,23.26440339]
[1738839279927,0.098149,201.38,201.37,22.88793339]
[1738839280111,0.098149,201.38,201.37,27.85383339]
[1738839280624,0.098149,201.38,201.37,33.1769199]
[1738839281323,0.098149,201.38,201.36,0.063]
[1738839281505,0.128149,201.38,201.36,0.063]
[1738839282498,30.0,201.37,201.36,0.063]
[1738839287229,0.128149,201.38,201.36,14.86217137]
[1738839287532,0.128149,201.38,201.37,14.79917137]
[1738839287717,0.22540703,201.38,201.37,14.79917137]
[1738839288353,0.12725803,201.38,201.37,14.79917137]
[1738839288628,0.12725803,201.38,201.37,28.2110199]
[1738839289131,0.12725803,201.38,201.37,33.1769199]
[1738839302661,0.12725803,201.38,201.37,29.09347462]
[1738839306051,0.09062639,201.42,201.37,29.09347462]
[1738839306052,0.09690312,201.46,201.4,0.37647]
[1738839306224,0.09690312,201.46,201.43,9.4690389]
[1738839307247,0.09690312,201.46,201.43,27.84538743]
[1738839307654,0.2206144,201.44,201.43,27.84538743]
[1738839308224,0.11965293,201.44,201.43,27.84538743]
[1738839309926,0.11965293,201.44,201.43,28.22185743]
[1738839310357,0.09613762,201.45,201.44,13.78831853]
[1738839310536,0.09613762,201.45,201.44,24.00179467]
[1738839311241,0.09613762,201.45,201.44,22.88088743]
[1738839312650,0.09613762,201.45,201.44,27.84508743]
[1738839315954,0.09613762,201.45,201.41,0.74449946]
[1738839315955,0.09613762,201.45,201.41,9.4690389]
[1738839316366,0.12613762,201.45,201.42,13.41184853]
[1738839316560,30.12613762,201.45,201.41,9.4690389]
[1738839316736,30.12613762,201.45,201.4,9.4690389]
[1738839317245,30.12613762,201.45,201.41,9.4690389]
[1738839317449,30.12613762,201.45,201.42,9.4690389]
[1738839317752,30.12613762,201.45,201.41,9.4690389]
[1738839318159,30.12613762,201.45,201.4,22.88088743]
[1738839318737,30.12613762,201.45,201.4,27.84588743]
[1738839319554,82.4,201.44,201.4,27.84588743]
[1738839319762,82.4,201.44,201.41,9.4690389]
[1738839321161,82.4,201.44,201.42,4.9647]
[1738839325057,82.4,201.44,201.42,9.4690389]
[1738839325262,82.4,201.44,201.43,9.4690389]
[1738839325442,0.12613762,201.45,201.44,13.41184853]
[1738839325641,0.12613762,201.45,201.44,22.88088743]
[1738839326865,0.12613762,201.45,201.44,27.84508743]
[1738839327442,0.12613762,201.45,201.44,4.9642]
[1738839327657,0.21642532,201.45,201.44,4.9642]
[1738839328253,0.1202877,201.45,201.44,4.9642]
[1738839328652,0.1202877,201.45,201.44,14.4332389]
[1738839329149,0.1202877,201.45,201.44,27.84508743]
[1738839339780,0.1202877,201.45,201.44,9.4690389]
[1738839339967,0.1202877,201.45,201.41,4.9649]
[1738839340275,0.1202877,201.45,201.41,14.4339389]
[1738839340480,0.1202877,201.45,201.42,9.4690389]
[1738839340954,0.1202877,201.45,201.41,14.4339389]
[1738839342683,30.1202877,201.45,201.4,0.063]
[1738839343582,30.1202877,201.45,201.4,5.0281]
[1738839343782,30.1202877,201.45,201.41,9.4690389]
[1738839347183,30.1202877,201.45,201.41,14.4339389]
[1738839347688,0.09187061,201.42,201.41,14.4339389]
[1738839348981,0.09187061,201.42,201.41,27.84578743]
[1738839350394,0.09187061,201.42,201.4,14.4971389]
[1738839350565,0.09187061,201.42,201.4,5.0281]
[1738839351084,0.09187061,201.42,201.4,9.5320389]
[1738839351465,0.09187061,201.42,201.41,0.063]
[1738839352285,0.09187061,201.42,201.41,5.0279]
[1738839352674,0.09187061,201.42,201.41,0.063]
[1738839353082,0.09187061,201.42,201.41,22.94388743]
[1738839354486,0.09187061,201.42,201.41,27.90878743]
[1738839361590,0.09187061,201.42,201.41,0.063]
[1738839362503,0.09187061,201.42,201.41,9.5320389]
[1738839363005,0.09187061,201.42,201.41,27.90878743]
[1738839365603,0.09187061,201.42,201.41,22.94388743]
[1738839366110,0.09187061,201.42,201.41,13.47484853]
[1738839367908,0.19213941,201.42,201.41,13.47484853]
[1738839368287,0.19213941,201.42,201.41,18.43974853]
[1738839368288,0.1002688,201.42,201.41,18.43974853]
[1738839376899,0.1002688,201.42,201.41,0.063]
[1738839380101,16.1866077,201.42,201.41,0.063]
[1738839380310,16.5630777,201.42,201.41,0.063]
[1738839380497,23.9493838,201.42,201.41,0.063]
[1738839382583,16.1866077,201.42,201.41,0.063]
[1738839383689,6.7175688,201.42,201.41,0.063]
[1738839384091,1.7528688,201.42,201.41,0.063]
[1738839387784,6.80901689,201.42,201.41,0.063]
[1738839388207,6.70874809,201.42,201.41,0.063]
[1738839388595,16.17778699,201.42,201.41,0.063]
[1738839390513,6.70874809,201.42,201.41,0.063]
[1738839390813,16.17778699,201.42,201.41,0.063]
[1738839399810,17.17778699,201.42,201.41,0.063]
[1738839401801,16.17778699,201.42,201.41,0.063]
[1738839406813,51.37647,201.38,201.37,0.0001]
[1738839407122,51.37647,201.38,201.36,0.063]
[1738839407123,20.0,201.33,201.32,0.063]
[1738839407717,20.10012367,201.33,201.32,0.063]
[1738839407924,29.94563257,201.33,201.32,0.063]
[1738839408962,34.91253257,201.33,201.32,0.063]
[1738839409434,30.0,201.27,201.26,0.03]
[1738839409642,39.4690389,201.27,201.26,0.03]
[1738839411022,44.4374389,201.27,201.26,0.03]
[1738839413118,34.9684,201.27,201.26,0.03]
[1738839416532,34.9684,201.27,201.2,0.063]
[1738839416533,30.0,201.24,201.2,0.063]
[1738839416742,30.0,201.24,201.21,9.4690389]
[1738839417825,30.0,201.24,201.2,22.94388743]
[1738839418316,30.0,201.24,201.21,9.4690389]
[1738839419740,30.0,201.21,201.2,0.063]
[1738839420629,39.4690389,201.21,201.2,0.063]
[1738839421338,39.8455089,201.21,201.2,0.063]
[1738839421836,44.4389389,201.21,201.2,0.063]
[1738839424628,44.8154089,201.21,201.2,0.063]
[1738839424844,44.4389389,201.21,201.2,0.063]
[1738839426144,91.0778706,201.21,201.2,0.0001]
[1738839426345,30.0,201.12,201.11,0.063]
[1738839426526,39.4690389,201.12,201.11,0.063]
[1738839426722,30.0,201.12,201.11,0.063]
[1738839427645,30.10356552,201.12,201.11,0.063]
[1738839428036,0.10356552,201.12,201.11,0.063]
[1738839432651,0.10356552,201.12,201.11,22.94388743]
[1738839434762,0.10356552,201.12,201.11,27.91628743]
[1738839435141,0.10356552,201.12,201.11,34.84385743]
[1738839435554,0.0910022,201.13,201.12,13.41184853]
[1738839435854,0.0910022,201.13,201.12,22.88088743]
[1738839436251,0.0910022,201.13,201.12,24.12849773]
[1738839436644,0.0910022,201.13,201.12,29.10059773]
[1738839438258,0.09157045,201.15,201.12,29.10059773]
[1738839438570,0.09157045,201.15,201.14,23.25735743]
[1738839438759,0.09157045,201.15,201.14,22.88088743]
[1738839441946,0.09157045,201.15,201.14,27.85248743]
[1738839442248,0.09157045,201.15,201.14,22.88088743]
[1738839442673,0.09157045,201.15,201.14,13.41184853]
[1738839443154,0.09157045,201.15,201.13,9.4690389]
[1738839444348,0.09157045,201.15,201.12,9.4690389]
[1738839445986,0.09157045,201.15,201.14,0.063]
[1738839447171,0.09157045,201.15,201.14,9.5320389]
[1738839447360,0.09157045,201.15,201.14,22.94388743]
[1738839447758,0.19399883,201.15,201.14,22.94388743]
[1738839448374,0.10242838,201.15,201.14,22.94388743]
[1738839450250,0.10242838,201.15,201.14,27.87394083]
[1738839451073,0.10242838,201.15,201.14,28.25041083]
[1738839451669,0.10242838,201.15,201.14,27.87394083]
[1738839453677,0.10242838,201.15,201.14,28.25041083]
[1738839455668,2.838e-05,201.15,201.14,28.25041083]
[1738839455856,4.45e-05,201.16,201.15,13.78831853]
[1738839456056,4.45e-05,201.16,201.15,24.00281608]
[1738839457355,4.45e-05,201.16,201.15,28.97421608]
[1738839458156,0.09710945,201.18,201.15,28.97421608]
[1738839458371,0.09710945,201.18,201.17,27.85178743]
[1738839458776,0.09710945,201.18,201.17,28.22825743]
[1738839460684,0.00395145,201.22,201.18,13.78831853]
[1738839460862,0.00395145,201.22,201.21,22.88088743]
[1738839462171,0.00395145,201.22,201.21,23.25735743]
[1738839462491,0.00395145,201.22,201.21,28.22725743]
[1738839463279,0.08074501,201.23,201.22,13.41184853]
[1738839463510,0.08074501,201.23,201.22,22.88088743]
[1738839463864,0.08074501,201.23,201.22,9.4690389]
[1738839464585,0.08074501,201.23,201.22,27.85048743]
[1738839467402,0.08074501,201.23,201.22,28.22695743]
[1738839467792,0.18428302,201.23,201.22,28.22695743]
[1738839468298,0.10353801,201.23,201.22,28.22695743]
[1738839468878,0.10716655,201.24,201.23,22.88088743]
[1738839469408,0.10716655,201.24,201.23,27.85028743]
[1738839469715,0.09345178,201.25,201.23,27.85028743]
[1738839469908,0.09345178,201.25,201.24,24.00255617]
[1738839470376,0.10416937,201.27,201.25,13.78831853]
[1738839470581,0.10416937,201.27,201.26,23.25735743]
[1738839471009,0.07482106,201.29,201.27,13.78831853]
[1738839471202,0.07482106,201.29,201.28,22.88088743]
[1738839471396,0.07482106,201.29,201.28,66.84676478]
[1738839471903,1e-08,201.29,201.28,66.84676478]
[1738839472804,1e-08,201.29,201.28,28.97060918]
[1738839473102,1e-08,201.29,201.28,28.22555743]
[1738839473892,1e-08,201.29,201.28,66.10171303]
[1738839479110,1e-08,201.29,201.28,28.22555743]
[1738839482587,0.03000001,201.29,201.28,66.10171303]
[1738839483100,0.03000001,201.29,201.28,28.22555743]
[1738839484193,0.03000001,201.29,201.28,27.84908743]
[1738839486585,0.03000001,201.29,201.28,66.10171303]
[1738839487511,0.03000001,201.29,201.28,28.22555743]
[1738839487696,0.12343144,201.29,201.28,28.22555743]
[1738839488205,0.12343143,201.29,201.28,27.84908743]
[1738839495092,0.12343143,201.29,201.28,27.91208743]
[1738839497613,0.10069454,201.3,201.29,13.78831853]
[1738839497793,0.10069454,201.3,201.29,61.13351303]
[1738839498918,0.00582889,201.31,201.29,66.22690303]
[1738839499214,0.00582889,201.31,201.3,61.87842398]
[1738839500606,0.00582889,201.31,201.3,22.88088743]
[1738839500812,0.00582889,201.31,201.3,27.84858743]
[1738839504313,0.00582889,201.31,201.3,22.88088743]
[1738839504723,0.00582889,201.31,201.3,13.41184853]
[1738839505820,0.00582889,201.31,201.28,14.5002389]
[1738839506624,0.00582889,201.31,201.29,13.41184853]
[1738839506801,0.03582889,201.31,201.29,13.41184853]
[1738839507001,0.03582889,201.31,201.3,9.4690389]
[1738839507828,0.13411963,201.31,201.3,9.4690389]
[1738839508215,0.12829074,201.31,201.3,9.4690389]
[1738839509427,0.12829074,201.31,201.3,27.84858743]
[1738839513329,0.12829074,201.31,201.3,65.72474303]
[1738839513551,0.12829074,201.31,201.3,66.10121303]
[1738839515435,0.12829074,201.31,201.3,67.32058215]
[1738839515638,0.12829074,201.31,201.3,67.44607215]
[1738839516131,0.10106014,201.32,201.31,13.78831853]
[1738839516329,0.10106014,201.32,201.31,24.00223515]
[1738839516838,0.09908174,201.33,201.31,24.00223515]
[1738839517016,0.09908174,201.33,201.32,23.25735743]
[1738839517337,0.12504405,201.34,201.33,18.37874853]
[1738839517539,0.12504405,201.34,201.33,27.84778743]
[1738839517837,0.12504405,201.34,201.33,28.96913141]
[1738839518016,0.1002708,201.35,201.34,13.78831853]
[1738839518222,0.1002708,201.35,201.34,23.25735743]
[1738839518427,82.4,201.42,201.35,13.41184853]
[1738839518615,82.4,201.42,201.35,22.88088743]
[1738839519647,82.4,201.42,201.35,27.84728743]
[1738839520423,1.6178,201.41,201.35,27.84728743]
[1738839525247,1.6178,201.41,201.35,28.22375743]
[1738839527745,0.23016941,201.36,201.35,28.22375743]
[1738839527946,0.22733114,201.37,201.36,13.78831853]
[1738839528126,0.19802245,201.38,201.37,13.78831853]
[1738839528326,0.09959027,201.38,201.37,23.25735743]
[1738839529124,0.0823538,201.39,201.38,13.78831853]
[1738839529324,0.0823538,201.39,201.38,61.13351303]
[1738839530155,0.09469001,201.4,201.39,18.75371853]
[1738839530459,0.09469001,201.4,201.39,66.09891303]
[1738839530833,0.09469001,201.4,201.39,28.22275743]
[1738839537455,0.09469001,201.4,201.39,66.09891303]
[1738839538142,0.09615939,201.41,201.39,66.09891303]
[1738839538335,0.09615939,201.41,201.4,65.72224303]
[1738839541661,0.09615939,201.41,201.4,56.25320413]
[1738839541958,0.09615939,201.41,201.4,27.84608743]
[1738839542257,0.09615939,201.41,201.4,22.88088743]
[1738839542745,0.12615939,201.41,201.4,66.8433898]
[1738839544273,0.1250669,201.44,201.41,13.78831853]
[1738839544555,0.1250669,201.44,201.41,23.25735743]
[1738839545347,0.1250669,201.44,201.41,28.22225743]
[1738839547766,0.1981743,201.42,201.41,28.22225743]
[1738839548356,0.09946406,201.42,201.41,28.22225743]
[1738839549147,0.12290867,201.45,201.43,20.0]
[1738839549353,0.093585,201.46,201.45,22.88088743]
[1738839550067,0.093585,201.46,201.45,24.12411642]
[1738839552145,0.093585,201.46,201.45,29.08811642]
[1738839552872,0.13163814,201.48,201.46,13.41184853]
[1738839553070,0.13163814,201.48,201.46,22.88088743]
[1738839553743,0.13163814,201.48,201.46,23.25735743]
[1738839554782,0.13163814,201.48,201.47,13.78831853]
[1738839555077,0.1284669,201.5,201.47,62.00330074]
[1738839555249,0.1284669,201.5,201.48,61.13351303]
[1738839555647,0.1284669,201.5,201.49,13.78831853]
[1738839555852,0.1284669,201.5,201.49,61.8777182]
[1738839556059,0.1284669,201.5,201.49,62.0032082]
[1738839556262,0.03,201.52,201.49,62.0032082]
[1738839556450,0.03,201.52,201.51,23.25735743]
[1738839556649,0.03,201.52,201.51,28.21985743]
[1738839558648,0.03,201.52,201.51,27.84338743]
[1738839558851,0.03,201.52,201.51,22.88088743]
[1738839559885,0.03,201.52,201.51,9.4690389]
[1738839560177,0.03,201.52,201.49,9.4690389]
[1738839560764,0.03,201.52,201.5,13.41184853]
[1738839561676,1.5536,201.52,201.5,13.41184853]
[1738839562258,83.9536,201.52,201.48,9.4690389]
[1738839562470,88.9158,201.52,201.48,9.4690389]
[1738839563658,83.9536,201.52,201.48,9.4690389]
[1738839564060,30.0,201.5,201.48,9.4690389]
[1738839565181,30.0,201.5,201.49,9.4690389]
[1738839565569,83.9536,201.52,201.49,9.4690389]
[1738839565764,83.9536,201.52,201.51,9.4690389]
[1738839567684,84.05343448,201.52,201.51,9.4690389]
[1738839568585,82.52983448,201.52,201.51,14.4315389]
[1738839568885,82.52983448,201.52,201.51,27.84338743]
[1738839569675,0.12983448,201.52,201.51,27.84338743]
[1738839571692,0.12983448,201.52,201.51,9.4690389]
[1738839575175,0.12983448,201.52,201.51,27.84338743]
[1738839576791,0.12983448,201.52,201.51,28.96409341]
[1738839577284,0.12983448,201.52,201.51,28.21985743]
[1738839579403,0.12983448,201.52,201.51,28.28285743]
[1738839586515,0.09454074,201.54,201.52,13.78831853]
[1738839586686,0.09454074,201.54,201.53,9.4690389]
[1738839587706,0.20191582,201.54,201.53,9.4690389]
[1738839587911,0.20191582,201.54,201.53,14.4310389]
[1738839588306,0.10737508,201.54,201.53,14.4310389]
[1738839589010,0.10737508,201.54,201.53,28.21935743]
[1738839592013,0.13737508,201.54,201.53,28.21935743]
[1738839599830,0.13737508,201.54,201.53,27.84288743]
[1738839600034,0.13737508,201.54,201.53,9.4690389]
[1738839600513,0.13737508,201.54,201.51,0.063]
[1738839600733,0.13737508,201.54,201.52,9.4690389]
[1738839600924,0.13737508,201.54,201.51,0.063]
[1738839600925,0.13737508,201.54,201.53,9.4690389]
[1738839601240,0.13737508,201.54,201.52,9.4690389]
[1738839601899,0.13737508,201.54,201.53,9.4690389]
[1738839604513,0.13737508,201.54,201.53,28.21935743]
[1738839607521,0.08757034,201.58,201.57,20.0]
[1738839607731,0.17503958,201.59,201.58,13.41184853]
[1738839607903,0.17503958,201.59,201.58,23.25735743]
[1738839608103,0.17503958,201.59,201.58,61.13351303]
[1738839608324,0.10909878,201.59,201.58,61.13351303]
[1738839608505,0.10909878,201.59,201.58,66.09431303]
[1738839608701,0.10909878,201.59,201.58,66.21980303]
[1738839608905,0.10403006,201.6,201.59,13.78831853]
[1738839609205,0.10403006,201.6,201.59,61.13351303]
[1738839609831,0.13072595,201.61,201.6,13.41184853]
[1738839610139,0.13072595,201.61,201.6,66.09381303]
[1738839610827,0.08956441,201.62,201.61,23.25735743]
[1738839612040,0.12588651,201.63,201.62,18.74811853]
[1738839612241,0.12588651,201.63,201.62,28.21715743]
[1738839612917,0.03,201.66,201.64,20.0]
[1738839613122,0.03,201.66,201.64,34.4283389]
[1738839613336,0.03,201.66,201.64,48.21665743]
[1738839613645,0.03,201.66,201.65,13.78831853]
[1738839613934,0.03,201.66,201.65,23.25735743]
[1738839615041,1.6501,201.71,201.67,43.25735743]
[1738839615343,1.6501,201.71,201.67,48.21585743]
[1738839616039,1.6501,201.71,201.67,47.83938743]
[1738839616609,1.6501,201.71,201.67,9.4690389]
[1738839617143,6.6077,201.71,201.67,9.4690389]
[1738839617643,30.03,201.69,201.67,9.4690389]
[1738839617858,30.03,201.69,201.65,9.4690389]
[1738839618338,30.0,201.66,201.64,9.4690389]
[1738839618521,30.0,201.66,201.62,9.4690389]
[1738839619734,30.0,201.66,201.63,9.4690389]
[1738839620841,30.0,201.66,201.62,9.4690389]
[1738839622249,34.9588,201.66,201.62,9.4690389]
[1738839622457,30.0,201.63,201.59,9.4690389]
[1738839622738,31.6515,201.63,201.59,9.4690389]
[1738839623519,31.6515,201.63,201.6,9.4690389]
[1738839624023,30.0,201.6,201.59,9.4690389]
[1738839624227,30.0,201.6,201.57,9.4690389]
[1738839624623,112.4,201.6,201.55,9.4690389]
[1738839625028,117.3603,201.6,201.55,9.4690389]
[1738839625436,112.4,201.6,201.56,9.4690389]
[1738839626042,117.3603,201.6,201.56,9.4690389]
[1738839626240,30.0,201.57,201.55,9.4690389]
[1738839627138,34.9611,201.57,201.55,0.063]
[1738839627849,0.0940808,201.56,201.55,0.063]
[1738839630250,0.0940808,201.56,201.55,9.5320389]
[1738839631243,0.0940808,201.56,201.55,0.063]
[1738839631944,5.0553808,201.56,201.55,0.063]
[1738839632128,6.5569808,201.56,201.55,0.063]
[1738839632954,30.0,201.52,201.51,0.063]
[1738839633120,39.4690389,201.52,201.51,0.063]
[1738839633828,44.4312389,201.52,201.51,0.063]
[1738839634749,55.79318218,201.52,201.51,0.063]
[1738839634943,57.16955218,201.52,201.51,0.063]
[1738839636151,56.16965218,201.52,201.51,0.063]
[1738839636756,57.16955218,201.52,201.51,0.063]
[1738839637128,56.16965218,201.52,201.51,0.063]
[1738839638453,57.16955218,201.52,201.51,0.063]
[1738839638635,59.67805218,201.52,201.51,0.0001]
[1738839639151,30.0,201.48,201.47,0.063]
[1738839639357,44.79448218,201.48,201.47,0.063]
[1738839639836,47.17085218,201.48,201.47,0.063]
[1738839640758,52.13405218,201.48,201.47,0.063]
[1738839641951,49.75768218,201.48,201.47,0.063]
[1738839642253,50.13415218,201.48,201.47,0.0001]
[1738839647858,50.22428483,201.48,201.47,0.0001]
[1738839650057,50.22428483,201.48,201.4,0.063]
[1738839650058,30.0,201.41,201.4,0.063]
[1738839650368,46.72145218,201.41,201.4,0.063]
[1738839651849,51.68635218,201.41,201.4,0.063]
[1738839652166,65.09820071,201.41,201.4,0.063]
[1738839652347,65.09820071,201.41,201.4,0.0001]
[1738839652546,79.89268289,201.41,201.4,0.0001]
[1738839652748,79.89268289,201.41,201.35,0.063]
[1738839652749,30.37647,201.36,201.35,0.063]
[1738839653062,45.17095218,201.36,201.35,0.063]
[1738839653757,44.79448218,201.36,201.35,0.063]
[1738839654061,34.9662,201.36,201.35,0.063]
[1738839655767,49.76068218,201.36,201.35,0.063]
[1738839655960,50.13715218,201.36,201.35,0.063]
[1738839658079,63.54900071,201.36,201.35,0.063]
[1738839658562,22.37637,201.31,201.3,0.063]
[1738839658769,50.58270071,201.31,201.3,0.0001]
[1738839659083,65.37718289,201.31,201.3,0.0001]
[1738839660172,71.25321238,201.31,201.3,0.0001]
[1738839660763,31.37637,201.27,201.26,0.063]
[1738839660953,59.58270071,201.27,201.26,0.063]
[1738839661155,61.10030071,201.27,201.26,0.063]
[1738839661666,61.10030071,201.27,201.26,0.0001]
[1738839661887,62.0089302,201.27,201.26,0.0001]
[1738839662249,66.9773302,201.27,201.26,0.0001]
[1738839663259,53.56548167,201.27,201.26,0.0001]
[1738839663472,66.9773302,201.27,201.26,0.0001]
[1738839665693,32.37637,201.23,201.22,0.0001]
[1738839665848,60.58270071,201.23,201.22,0.0001]
[1738839666771,65.55210071,201.23,201.22,0.0001]
[1738839667691,52.37637,201.2,201.19,0.0001]
[1738839667974,95.37718289,201.2,201.19,0.0001]
[1738839668272,32.37637,201.15,201.14,0.0214534]
[1738839668477,60.58270071,201.15,201.14,5.34e-05]
[1738839668777,61.4913302,201.15,201.14,5.34e-05]
[1738839668964,52.37637,201.12,201.11,5.34e-05]
[1738839669155,80.58270071,201.12,201.11,5.34e-05]
[1738839669358,81.4913302,201.12,201.11,5.34e-05]
[1738839669556,86.4634302,201.12,201.11,5.34e-05]
[1738839669754,1.37637,201.1,201.09,5.34e-05]
[1738839669955,17.17085218,201.1,201.09,5.34e-05]
[1738839670458,33.49433436,201.1,201.09,5.34e-05]
[1738839670875,46.90618289,201.1,201.09,5.34e-05]
[1738839671059,30.0,200.97,200.95,6.0597]
[1738839672169,30.0,201.0,200.96,14.79448218]
[1738839672365,30.0,201.0,200.97,14.79448218]
[1738839672572,30.0,201.0,200.95,6.0597]
[1738839672573,30.0,201.0,200.96,14.79448218]
[1738839672761,30.0,200.97,200.95,20.85418218]
[1738839673759,30.0,201.0,200.96,14.79448218]
[1738839673958,30.0,201.0,200.97,14.79448218]
[1738839674473,30.0,200.97,200.96,14.79448218]
[1738839674675,30.0,200.97,200.95,6.0597]
[1738839674854,30.0,200.97,200.95,20.85418218]
[1738839675049,30.0,200.97,200.95,6.0597]
[1738839675485,30.0,200.94,200.92,14.79448218]
[1738839675697,30.0,200.91,200.9,21.11018218]
[1738839675980,30.0,200.88,200.85,14.79448218]
[1738839676158,30.0,200.88,200.82,4.9795]
[1738839676570,30.0,200.88,200.84,14.79448218]
[1738839676951,30.0,200.88,200.86,14.79448218]
[1738839678270,30.0,200.88,200.85,14.79448218]
[1738839678690,30.0,200.88,200.86,14.79448218]
[1738839678875,30.0,200.91,200.87,14.79448218]
[1738839679083,30.0,200.92,200.9,14.79448218]
[1738839679277,30.0,200.92,200.91,14.79448218]
[1738839679462,30.0,200.92,200.9,14.79448218]
[1738839681082,30.0,200.95,200.91,14.79448218]
[1738839681275,30.0,200.95,200.93,14.79448218]
[1738839681474,30.0,200.95,200.92,14.79448218]
[1738839681967,30.0,200.99,200.94,14.79448218]
[1738839682174,30.0,200.99,200.96,14.79448218]
[1738839683080,30.0,200.99,200.97,14.79448218]
[1738839683279,30.0,201.02,200.98,14.79448218]
[1738839683486,30.0,201.02,201.01,14.79448218]
[1738839683804,30.0,201.05,201.01,14.79448218]
[1738839683967,30.0,201.05,201.04,14.79448218]
[1738839684280,30.0,201.08,201.04,14.79448218]
[1738839684683,30.0,201.08,201.05,14.79448218]
[1738839684879,30.0,201.08,201.0,14.79448218]
[1738839684880,30.0,201.08,201.07,14.79448218]
[1738839685084,30.0,201.11,201.07,14.79448218]
[1738839686273,30.0,201.11,201.08,14.79448218]
[1738839686667,30.0,201.11,201.07,23.75424355]
[1738839687284,30.0,201.08,201.04,23.75424355]
[1738839687462,30.0,201.05,201.01,31.47034355]
[1738839687880,30.10327755,201.05,201.01,6.1098]
[1738839688071,30.0,201.02,200.98,23.75424355]
[1738839688276,30.0,201.02,200.96,30.20634355]
[1738839688583,30.0,201.02,200.99,23.75424355]
[1738839688772,30.10327755,201.05,201.01,23.75424355]
[1738839689081,30.10327755,201.05,201.02,23.75424355]
[1738839689470,0.10327755,201.05,201.04,23.75424355]